[Event "Titled Tuesday Blitz November 9 2021"]
[White "Lazavik, Denis"]
[Black "Siva Mahadevan"]
[WhiteFideId "13515110"]
[BlackFideId "25043153"]
[WhiteElo "2436"]
[BlackElo "2203"]
[Result "1/2-1/2"]
[Round "08"]
[TimeControl "180+1"]
[Date "2021.11.09"]
[WhiteClock "0:00:05"]
[BlackClock "0:00:15"]

1. d4 {[%clk 0:03:00]}  Nf6 {[%clk 0:02:59]} 2. c4 {[%clk 0:03:00]}  g6 {[%clk 0:03:00]} 3. g3 {[%clk 0:03:01]}  Bg7 {[%clk 0:03:00]} 4. Bg2 {[%clk 0:03:01]}  O-O {[%clk 0:03:01]} 5. Nf3 {[%clk 0:03:01]}  d6 {[%clk 0:03:02]} 6. Nc3 {[%clk 0:03:02]}  Nbd7 {[%clk 0:03:02]} 7. O-O {[%clk 0:03:02]}  e5 {[%clk 0:03:03]} 8. e4 {[%clk 0:03:03]}  c6 {[%clk 0:03:04]} 9. h3 {[%clk 0:03:03]}  Qa5 {[%clk 0:03:04]} 10. Be3 {[%clk 0:03:02]}  exd4 {[%clk 0:03:04]} 11. Nxd4 {[%clk 0:03:03]}  Nb6 {[%clk 0:03:05]} 12. Nb3 {[%clk 0:02:41]}  Qh5 {[%clk 0:03:04]} 13. Qxh5 {[%clk 0:02:28]}  Nxh5 {[%clk 0:03:05]} 14. Na5 {[%clk 0:02:28]}  Be6 {[%clk 0:03:04]} 15. c5 {[%clk 0:02:25]}  Nc4 {[%clk 0:02:59]} 16. Nxc4 {[%clk 0:02:23]}  Bxc4 {[%clk 0:03:00]} 17. Rfd1 {[%clk 0:02:23]}  dxc5 {[%clk 0:02:59]} 18. Bxc5 {[%clk 0:02:24]}  Rfd8 {[%clk 0:02:59]} 19. Bd6 {[%clk 0:02:18]}  Rd7 {[%clk 0:02:49]} 20. e5 {[%clk 0:01:47]}  Rad8 {[%clk 0:02:47]} 21. Kh2 {[%clk 0:01:47]}  f6 {[%clk 0:02:37]} 22. f4 {[%clk 0:01:46]}  fxe5 {[%clk 0:02:31]} 23. fxe5 {[%clk 0:01:45]}  Bf8 {[%clk 0:02:07]} 24. Ne4 {[%clk 0:01:33]}  Bd5 {[%clk 0:01:56]} 25. Nc5 {[%clk 0:01:11]}  Rxd6 {[%clk 0:01:56]} 26. exd6 {[%clk 0:01:10]}  Bxd6 {[%clk 0:01:57]} 27. Ne4 {[%clk 0:00:41]}  Bxe4 {[%clk 0:01:37]} 28. Bxe4 {[%clk 0:00:42]}  Bxg3+ {[%clk 0:01:37]} 29. Kg2 {[%clk 0:00:42]}  Bd6 {[%clk 0:01:38]} 30. Rd2 {[%clk 0:00:29]}  Nf4+ {[%clk 0:01:37]} 31. Kh1 {[%clk 0:00:30]}  Nxh3 {[%clk 0:01:28]} 32. Rad1 {[%clk 0:00:29]}  Re8 {[%clk 0:01:28]} 33. Bg2 {[%clk 0:00:21]}  Re3 {[%clk 0:01:25]} 34. Rxd6 {[%clk 0:00:16]}  Nf2+ {[%clk 0:01:26]} 35. Kg1 {[%clk 0:00:16]}  Nxd1 {[%clk 0:01:27]} 36. Rxd1 {[%clk 0:00:17]}  Re7 {[%clk 0:01:24]} 37. Kf2 {[%clk 0:00:17]}  Kg7 {[%clk 0:01:24]} 38. Bf3 {[%clk 0:00:17]}  h5 {[%clk 0:01:24]} 39. Rd6 {[%clk 0:00:14]}  Kh6 {[%clk 0:01:24]} 40. Be2 {[%clk 0:00:14]}  Kg5 {[%clk 0:01:23]} 41. Bd3 {[%clk 0:00:14]}  Rg7 {[%clk 0:01:21]} 42. Kg3 {[%clk 0:00:13]}  h4+ {[%clk 0:01:18]} 43. Kh3 {[%clk 0:00:13]}  Kh5 {[%clk 0:01:18]} 44. Be2+ {[%clk 0:00:11]}  Kg5 {[%clk 0:01:18]} 45. Re6 {[%clk 0:00:08]}  Kf5 {[%clk 0:01:09]} 46. Bg4+ {[%clk 0:00:07]}  Kf4 {[%clk 0:01:10]} 47. Re2 {[%clk 0:00:04]}  c5 {[%clk 0:00:57]} 48. Rf2+ {[%clk 0:00:04]}  Kg5 {[%clk 0:00:57]} 49. Re2 {[%clk 0:00:05]}  b6 {[%clk 0:00:56]} 50. Re5+ {[%clk 0:00:05]}  Kf4 {[%clk 0:00:56]} 51. Rd5 {[%clk 0:00:05]}  Re7 {[%clk 0:00:55]} 52. Bd7 {[%clk 0:00:03]}  g5 {[%clk 0:00:51]} 53. Rd1 {[%clk 0:00:03]}  Re3+ {[%clk 0:00:51]} 54. Kg2 {[%clk 0:00:04]}  Re2+ {[%clk 0:00:51]} 55. Kh3 {[%clk 0:00:04]}  g4+ {[%clk 0:00:51]} 56. Bxg4 {[%clk 0:00:04]}  Re3+ {[%clk 0:00:51]} 57. Kxh4 {[%clk 0:00:04]}  Ke5 {[%clk 0:00:36]} 58. Kg5 {[%clk 0:00:04]}  Rg3 {[%clk 0:00:35]} 59. Rd7 {[%clk 0:00:04]}  Rg2 {[%clk 0:00:34]} 60. Rxa7 {[%clk 0:00:04]}  Rxb2 {[%clk 0:00:35]} 61. a4 {[%clk 0:00:04]}  c4 {[%clk 0:00:33]} 62. Rc7 {[%clk 0:00:03]}  Kd4 {[%clk 0:00:33]} 63. Rd7+ {[%clk 0:00:04]}  Kc5 {[%clk 0:00:33]} 64. Rc7+ {[%clk 0:00:04]}  Kb4 {[%clk 0:00:30]} 65. Be6 {[%clk 0:00:04]}  Rg2+ {[%clk 0:00:29]} 66. Kf4 {[%clk 0:00:03]}  Rc2 {[%clk 0:00:22]} 67. Ke3 {[%clk 0:00:03]}  Kxa4 {[%clk 0:00:17]} 68. Bxc4 {[%clk 0:00:01]}  Kb4 {[%clk 0:00:15]} 69. Rc6 {[%clk 0:00:02]}  Rxc4 {[%clk 0:00:15]} 70. Rxb6+ {[%clk 0:00:02]}  Kc5 {[%clk 0:00:15]} 71. Re6 {[%clk 0:00:03]}  Rc3+ {[%clk 0:00:15]} 72. Kf4 {[%clk 0:00:03]}  Rc4+ {[%clk 0:00:15]} 73. Re4 {[%clk 0:00:04]}  Rxe4+ {[%clk 0:00:15]} 74. Kxe4 {[%clk 0:00:05]} 1/2-1/2


[Site "https://www.chess.com"]

[Event "Titled Tuesday Blitz November 9 2021"]
[White "Libiszewski, Fabien"]
[Black "Gubajdullin, Alexei"]
[WhiteFideId "616834"]
[BlackFideId "4141202"]
[WhiteElo "2440"]
[BlackElo "2268"]
[Result "1-0"]
[Round "08"]
[TimeControl "180+1"]
[Date "2021.11.09"]
[WhiteClock "0:00:03"]
[BlackClock "0:00:01"]

1. e4 {[%clk 0:03:00]}  d6 {[%clk 0:02:59]} 2. Nc3 {[%clk 0:02:58]}  g6 {[%clk 0:02:58]} 3. h4 {[%clk 0:02:55]}  h6 {[%clk 0:02:57]} 4. h5 {[%clk 0:02:51]}  g5 {[%clk 0:02:57]} 5. d3 {[%clk 0:02:49]}  Bg7 {[%clk 0:02:57]} 6. f4 {[%clk 0:02:49]}  gxf4 {[%clk 0:02:53]} 7. Bxf4 {[%clk 0:02:50]}  Nf6 {[%clk 0:02:53]} 8. Qd2 {[%clk 0:02:43]}  Ng4 {[%clk 0:02:48]} 9. O-O-O {[%clk 0:02:35]}  c5 {[%clk 0:02:38]} 10. Kb1 {[%clk 0:02:34]}  Nc6 {[%clk 0:02:37]} 11. Nf3 {[%clk 0:02:32]}  Rb8 {[%clk 0:02:22]} 12. Nh4 {[%clk 0:02:24]}  b5 {[%clk 0:02:21]} 13. Nf5 {[%clk 0:02:20]}  Bxf5 {[%clk 0:02:12]} 14. exf5 {[%clk 0:02:21]}  b4 {[%clk 0:02:12]} 15. Nd5 {[%clk 0:02:18]}  a5 {[%clk 0:02:06]} 16. Rh3 {[%clk 0:01:58]}  Bd4 {[%clk 0:01:39]} 17. Rg3 {[%clk 0:01:44]}  Nf6 {[%clk 0:01:38]} 18. Nxf6+ {[%clk 0:01:37]}  Bxf6 {[%clk 0:01:38]} 19. Bxh6 {[%clk 0:01:35]}  Nd4 {[%clk 0:01:32]} 20. Bg7 {[%clk 0:01:20]}  Bxg7 {[%clk 0:01:31]} 21. Rxg7 {[%clk 0:01:21]}  Nxf5 {[%clk 0:01:31]} 22. Rg5 {[%clk 0:01:12]}  Nd4 {[%clk 0:01:29]} 23. h6 {[%clk 0:01:02]}  Kd7 {[%clk 0:01:24]} 24. Rh5 {[%clk 0:01:01]}  a4 {[%clk 0:01:21]} 25. h7 {[%clk 0:00:54]}  a3 {[%clk 0:01:21]} 26. b3 {[%clk 0:00:54]}  e6 {[%clk 0:01:09]} 27. Qh6 {[%clk 0:00:49]}  Nb5 {[%clk 0:00:56]} 28. Re1 {[%clk 0:00:46]}  Nc3+ {[%clk 0:00:35]} 29. Ka1 {[%clk 0:00:46]}  Nd5 {[%clk 0:00:32]} 30. Qg7 {[%clk 0:00:35]}  Qf6+ {[%clk 0:00:29]} 31. Qxf6 {[%clk 0:00:34]}  Nxf6 {[%clk 0:00:28]} 32. Rh6 {[%clk 0:00:34]}  Ke7 {[%clk 0:00:28]} 33. d4 {[%clk 0:00:30]}  cxd4 {[%clk 0:00:26]} 34. Bd3 {[%clk 0:00:30]}  Ng4 {[%clk 0:00:13]} 35. Rh4 {[%clk 0:00:29]}  Ne5 {[%clk 0:00:13]} 36. Bf1 {[%clk 0:00:09]}  f5 {[%clk 0:00:11]} 37. Kb1 {[%clk 0:00:08]}  Kf6 {[%clk 0:00:10]} 38. Kc1 {[%clk 0:00:07]}  Rb7 {[%clk 0:00:09]} 39. Rxd4 {[%clk 0:00:07]}  d5 {[%clk 0:00:09]} 40. Rd2 {[%clk 0:00:05]}  Rhxh7 {[%clk 0:00:09]} 41. Rde2 {[%clk 0:00:05]}  Ng4 {[%clk 0:00:07]} 42. Rxe6+ {[%clk 0:00:06]}  Kg5 {[%clk 0:00:07]} 43. Rd6 {[%clk 0:00:06]}  Rhc7 {[%clk 0:00:07]} 44. Rxd5 {[%clk 0:00:06]}  Rc3 {[%clk 0:00:07]} 45. Bd3 {[%clk 0:00:06]}  Nh6 {[%clk 0:00:06]} 46. Rf1 {[%clk 0:00:05]}  Rbc7 {[%clk 0:00:06]} 47. Kd2 {[%clk 0:00:05]}  R3c5 {[%clk 0:00:05]} 48. Rd4 {[%clk 0:00:05]}  Rb7 {[%clk 0:00:04]} 49. Rff4 {[%clk 0:00:05]}  Rb6 {[%clk 0:00:02]} 50. Rxb4 {[%clk 0:00:05]}  Rxb4 {[%clk 0:00:02]} 51. Rxb4 {[%clk 0:00:06]}  Ng4 {[%clk 0:00:01]} 52. Ra4 {[%clk 0:00:06]}  Re5 {[%clk 0:00:01]} 53. Rxa3 {[%clk 0:00:06]}  Re3 {[%clk 0:00:01]} 54. Ra8 {[%clk 0:00:06]}  Rg3 {[%clk 0:00:01]} 55. Ra5 {[%clk 0:00:06]}  Rxg2+ {[%clk 0:00:01]} 56. Kc3 {[%clk 0:00:06]}  Ne3 {[%clk 0:00:01]} 57. a4 {[%clk 0:00:05]}  Kg4 {[%clk 0:00:01]} 58. Ra8 {[%clk 0:00:03]}  f4 {[%clk 0:00:01]} 59. Rg8+ {[%clk 0:00:03]}  Kf3 {[%clk 0:00:01]} 60. Rxg2 {[%clk 0:00:03]}  Kxg2 {[%clk 0:00:01]} 61. Be4+ {[%clk 0:00:04]}  Kf2 {[%clk 0:00:01]} 62. a5 {[%clk 0:00:03]} 1-0


[Site "https://www.chess.com"]

[Event "Titled Tuesday Blitz November 9 2021"]
[White "Maghsoodloo, Parham"]
[Black "Rostovtsev, Dmitry"]
[WhiteFideId "12539929"]
[BlackFideId "34278320"]
[WhiteElo "2601"]
[BlackElo "2253"]
[Result "1-0"]
[Round "08"]
[TimeControl "180+1"]
[Date "2021.11.09"]
[WhiteClock "0:01:35"]
[BlackClock "0:00:01"]

1. e4 {[%clk 0:03:00]}  e5 {[%clk 0:02:57]} 2. Nf3 {[%clk 0:03:00]}  Nc6 {[%clk 0:02:57]} 3. Bc4 {[%clk 0:03:01]}  Bc5 {[%clk 0:02:57]} 4. O-O {[%clk 0:03:00]}  Nf6 {[%clk 0:02:55]} 5. d3 {[%clk 0:03:01]}  d6 {[%clk 0:02:54]} 6. h3 {[%clk 0:03:00]}  h6 {[%clk 0:02:54]} 7. c3 {[%clk 0:02:58]}  O-O {[%clk 0:02:53]} 8. Re1 {[%clk 0:02:57]}  a6 {[%clk 0:02:51]} 9. a4 {[%clk 0:02:56]}  Ne7 {[%clk 0:02:45]} 10. Nbd2 {[%clk 0:02:54]}  Ng6 {[%clk 0:02:45]} 11. Nf1 {[%clk 0:02:53]}  c6 {[%clk 0:02:41]} 12. Ng3 {[%clk 0:02:45]}  d5 {[%clk 0:02:40]} 13. Bb3 {[%clk 0:02:45]}  Bd6 {[%clk 0:02:33]} 14. Be3 {[%clk 0:02:40]}  a5 {[%clk 0:02:29]} 15. Qd2 {[%clk 0:02:38]}  Be6 {[%clk 0:02:13]} 16. Bc2 {[%clk 0:02:38]}  Re8 {[%clk 0:01:51]} 17. Rad1 {[%clk 0:02:38]}  Bc7 {[%clk 0:01:32]} 18. Qc1 {[%clk 0:02:34]}  Bb6 {[%clk 0:01:25]} 19. d4 {[%clk 0:02:21]}  Nxe4 {[%clk 0:01:01]} 20. Nxe4 {[%clk 0:02:15]}  dxe4 {[%clk 0:01:02]} 21. dxe5 {[%clk 0:02:08]}  Bxe3 {[%clk 0:00:39]} 22. Qxe3 {[%clk 0:02:05]}  Qc7 {[%clk 0:00:39]} 23. Bxe4 {[%clk 0:02:03]}  Bb3 {[%clk 0:00:39]} 24. Rd4 {[%clk 0:01:56]}  Ne7 {[%clk 0:00:24]} 25. Nd2 {[%clk 0:01:39]}  Be6 {[%clk 0:00:22]} 26. f4 {[%clk 0:01:39]}  Nf5 {[%clk 0:00:16]} 27. Bxf5 {[%clk 0:01:39]}  Bxf5 {[%clk 0:00:17]} 28. Nc4 {[%clk 0:01:39]}  Be6 {[%clk 0:00:14]} 29. Nd6 {[%clk 0:01:40]}  Re7 {[%clk 0:00:14]} 30. c4 {[%clk 0:01:39]}  b6 {[%clk 0:00:11]} 31. f5 {[%clk 0:01:39]}  Bd7 {[%clk 0:00:06]} 32. f6 {[%clk 0:01:39]}  Re6 {[%clk 0:00:06]} 33. Nf5 {[%clk 0:01:38]}  Rae8 {[%clk 0:00:02]} 34. Nxh6+ {[%clk 0:01:38]}  Kf8 {[%clk 0:00:01]} 35. Ng4 {[%clk 0:01:35]} 1-0


[Site "https://www.chess.com"]

[Event "Titled Tuesday Blitz November 9 2021"]
[White "Moskalenko, Alexander"]
[Black "Piesik, Piotr"]
[WhiteFideId "4155351"]
[BlackFideId "1136194"]
[WhiteElo "2515"]
[BlackElo "2336"]
[Result "0-1"]
[Round "08"]
[TimeControl "180+1"]
[Date "2021.11.09"]
[WhiteClock "0:00:03"]
[BlackClock "0:00:12"]

1. d4 {[%clk 0:03:00]}  c5 {[%clk 0:02:59]} 2. d5 {[%clk 0:03:00]}  e5 {[%clk 0:02:59]} 3. Nc3 {[%clk 0:02:59]}  d6 {[%clk 0:02:59]} 4. e4 {[%clk 0:02:59]}  Be7 {[%clk 0:03:00]} 5. Bb5+ {[%clk 0:02:57]}  Nd7 {[%clk 0:02:59]} 6. Nf3 {[%clk 0:02:56]}  a6 {[%clk 0:02:59]} 7. Bxd7+ {[%clk 0:02:56]}  Bxd7 {[%clk 0:03:00]} 8. a4 {[%clk 0:02:57]}  b5 {[%clk 0:03:00]} 9. axb5 {[%clk 0:02:57]}  axb5 {[%clk 0:03:01]} 10. Rxa8 {[%clk 0:02:57]}  Qxa8 {[%clk 0:03:02]} 11. O-O {[%clk 0:02:56]}  Nf6 {[%clk 0:03:02]} 12. Bg5 {[%clk 0:02:55]}  O-O {[%clk 0:02:57]} 13. Nd2 {[%clk 0:02:55]}  Qa6 {[%clk 0:02:53]} 14. Qe2 {[%clk 0:02:46]}  h6 {[%clk 0:02:51]} 15. Bh4 {[%clk 0:02:45]}  Re8 {[%clk 0:02:51]} 16. Re1 {[%clk 0:02:40]}  Nh7 {[%clk 0:02:42]} 17. Bxe7 {[%clk 0:02:39]}  Rxe7 {[%clk 0:02:43]} 18. Qf1 {[%clk 0:02:39]}  Re8 {[%clk 0:02:41]} 19. Ra1 {[%clk 0:02:39]}  Qb7 {[%clk 0:02:41]} 20. Ra5 {[%clk 0:02:37]}  Ra8 {[%clk 0:02:40]} 21. Qa1 {[%clk 0:02:36]}  Rxa5 {[%clk 0:02:39]} 22. Qxa5 {[%clk 0:02:37]}  Qb8 {[%clk 0:02:39]} 23. b4 {[%clk 0:02:32]}  c4 {[%clk 0:02:34]} 24. Ndb1 {[%clk 0:02:28]}  f5 {[%clk 0:02:28]} 25. exf5 {[%clk 0:02:27]}  Bxf5 {[%clk 0:02:28]} 26. Na3 {[%clk 0:02:25]}  Nf6 {[%clk 0:02:24]} 27. Naxb5 {[%clk 0:02:24]}  Bxc2 {[%clk 0:02:22]} 28. Nc7 {[%clk 0:02:20]}  Bf5 {[%clk 0:02:07]} 29. b5 {[%clk 0:02:20]}  Nd7 {[%clk 0:02:01]} 30. Qa8 {[%clk 0:02:05]}  Qxa8 {[%clk 0:02:00]} 31. Nxa8 {[%clk 0:02:06]}  Kf7 {[%clk 0:01:58]} 32. b6 {[%clk 0:02:04]}  Ke7 {[%clk 0:01:57]} 33. b7 {[%clk 0:01:58]}  Nb8 {[%clk 0:01:52]} 34. Nc7 {[%clk 0:01:32]}  Kd7 {[%clk 0:01:49]} 35. N7b5 {[%clk 0:01:33]}  Ke7 {[%clk 0:01:35]} 36. f3 {[%clk 0:01:23]}  Bd7 {[%clk 0:01:28]} 37. Kf2 {[%clk 0:01:20]}  Bxb5 {[%clk 0:01:28]} 38. Nxb5 {[%clk 0:01:20]}  Kd7 {[%clk 0:01:28]} 39. Ke3 {[%clk 0:01:21]}  g5 {[%clk 0:01:23]} 40. Kd2 {[%clk 0:01:17]}  h5 {[%clk 0:01:23]} 41. Kc3 {[%clk 0:01:17]}  g4 {[%clk 0:01:23]} 42. Kxc4 {[%clk 0:01:16]}  gxf3 {[%clk 0:01:22]} 43. gxf3 {[%clk 0:01:15]}  Na6 {[%clk 0:01:22]} 44. Kd3 {[%clk 0:01:15]}  Nc5+ {[%clk 0:01:22]} 45. Ke3 {[%clk 0:01:15]}  Nxb7 {[%clk 0:01:23]} 46. f4 {[%clk 0:01:13]}  Nc5 {[%clk 0:01:18]} 47. f5 {[%clk 0:01:05]}  Ke7 {[%clk 0:01:18]} 48. h4 {[%clk 0:00:59]}  Nb7 {[%clk 0:01:14]} 49. Kf3 {[%clk 0:00:48]}  Kf6 {[%clk 0:01:12]} 50. Ke4 {[%clk 0:00:48]}  Nc5+ {[%clk 0:01:11]} 51. Ke3 {[%clk 0:00:48]}  Kxf5 {[%clk 0:01:06]} 52. Nxd6+ {[%clk 0:00:46]}  Kg4 {[%clk 0:01:06]} 53. Ne4 {[%clk 0:00:46]}  Nd7 {[%clk 0:01:06]} 54. d6 {[%clk 0:00:41]}  Kxh4 {[%clk 0:01:05]} 55. Kf3 {[%clk 0:00:40]}  Kh3 {[%clk 0:00:55]} 56. Nf2+ {[%clk 0:00:39]}  Kh4 {[%clk 0:00:53]} 57. Ke4 {[%clk 0:00:40]}  Kg5 {[%clk 0:00:52]} 58. Kd5 {[%clk 0:00:39]}  Kf4 {[%clk 0:00:49]} 59. Ke6 {[%clk 0:00:37]}  Nb6 {[%clk 0:00:48]} 60. Nd3+ {[%clk 0:00:36]}  Kg3 {[%clk 0:00:46]} 61. Nxe5 {[%clk 0:00:37]}  h4 {[%clk 0:00:46]} 62. Nc4 {[%clk 0:00:36]}  h3 {[%clk 0:00:33]} 63. Nxb6 {[%clk 0:00:36]}  h2 {[%clk 0:00:34]} 64. d7 {[%clk 0:00:37]}  h1=Q {[%clk 0:00:34]} 65. d8=Q {[%clk 0:00:38]}  Qc6+ {[%clk 0:00:34]} 66. Ke5 {[%clk 0:00:35]}  Qc3+ {[%clk 0:00:31]} 67. Ke6 {[%clk 0:00:29]}  Qc6+ {[%clk 0:00:25]} 68. Ke7 {[%clk 0:00:19]}  Qc5+ {[%clk 0:00:25]} 69. Kf6 {[%clk 0:00:18]}  Qc3+ {[%clk 0:00:17]} 70. Ke7 {[%clk 0:00:12]}  Qe5+ {[%clk 0:00:15]} 71. Kf7 {[%clk 0:00:10]}  Qf5+ {[%clk 0:00:15]} 72. Kg7 {[%clk 0:00:10]}  Qe5+ {[%clk 0:00:14]} 73. Kg6 {[%clk 0:00:10]}  Qe6+ {[%clk 0:00:14]} 74. Kh7 {[%clk 0:00:06]}  Qf7+ {[%clk 0:00:12]} 75. Kh8 {[%clk 0:00:03]}  Qh5+ {[%clk 0:00:12]} 76. Kg7 {[%clk 0:00:03]}  Qe5+ {[%clk 0:00:12]} 77. Kf7 {[%clk 0:00:03]}  Qf5+ {[%clk 0:00:12]} 0-1


[Site "https://www.chess.com"]

[Event "Titled Tuesday Blitz November 9 2021"]
[White "Obregon, Andres Carlos"]
[Black "Hansen, Eric"]
[WhiteFideId "111724"]
[BlackFideId "2606771"]
[WhiteElo "2572"]
[BlackElo "2568"]
[Result "0-1"]
[Round "08"]
[TimeControl "180+1"]
[Date "2021.11.09"]
[WhiteClock "0:01:33"]
[BlackClock "0:01:43"]

1. c4 {[%clk 0:03:00]}  e5 {[%clk 0:02:58]} 2. Nc3 {[%clk 0:03:00]}  Nf6 {[%clk 0:02:45]} 3. Nf3 {[%clk 0:02:59]}  Nc6 {[%clk 0:02:43]} 4. g3 {[%clk 0:02:59]}  Bb4 {[%clk 0:02:43]} 5. Bg2 {[%clk 0:02:59]}  Bxc3 {[%clk 0:02:42]} 6. bxc3 {[%clk 0:02:58]}  O-O {[%clk 0:02:41]} 7. O-O {[%clk 0:02:57]}  h6 {[%clk 0:02:35]} 8. d3 {[%clk 0:02:57]}  e4 {[%clk 0:02:34]} 9. Nd4 {[%clk 0:02:56]}  Re8 {[%clk 0:02:35]} 10. dxe4 {[%clk 0:02:39]}  Nxe4 {[%clk 0:02:35]} 11. Qc2 {[%clk 0:02:36]}  Qe7 {[%clk 0:02:20]} 12. Nb5 {[%clk 0:02:03]}  d6 {[%clk 0:02:21]} 13. Bxe4 {[%clk 0:02:00]}  Qxe4 {[%clk 0:02:22]} 14. Qxe4 {[%clk 0:02:00]}  Rxe4 {[%clk 0:02:22]} 15. Nxc7 {[%clk 0:02:00]}  Rb8 {[%clk 0:02:23]} 16. Nb5 {[%clk 0:02:00]}  Rxe2 {[%clk 0:02:17]} 17. Bf4 {[%clk 0:01:55]}  Bh3 {[%clk 0:02:16]} 18. Rfe1 {[%clk 0:01:53]}  Rbe8 {[%clk 0:02:16]} 19. Rxe2 {[%clk 0:01:52]}  Rxe2 {[%clk 0:02:17]} 20. Nxd6 {[%clk 0:01:47]}  b6 {[%clk 0:02:05]} 21. c5 {[%clk 0:01:43]}  bxc5 {[%clk 0:02:02]} 22. Be3 {[%clk 0:01:43]}  Rc2 {[%clk 0:01:54]} 23. c4 {[%clk 0:01:43]}  Nd4 {[%clk 0:01:50]} 24. Ne4 {[%clk 0:01:35]}  Rxc4 {[%clk 0:01:43]} 25. Nxc5 {[%clk 0:01:33]}  Nc2 {[%clk 0:01:43]} 0-1


[Site "https://www.chess.com"]

[Event "Titled Tuesday Blitz November 9 2021"]
[White "Preotu, Razvan"]
[Black "Kovalenko, Igor"]
[WhiteFideId "2613280"]
[BlackFideId "14117908"]
[WhiteElo "2407"]
[BlackElo "2629"]
[Result "1-0"]
[Round "08"]
[TimeControl "180+1"]
[Date "2021.11.09"]
[WhiteClock "0:00:18"]
[BlackClock "0:00:32"]

1. e4 {[%clk 0:03:00]}  e6 {[%clk 0:02:56]} 2. d4 {[%clk 0:03:00]}  d5 {[%clk 0:02:56]} 3. Nc3 {[%clk 0:03:01]}  Bb4 {[%clk 0:02:56]} 4. e5 {[%clk 0:03:01]}  c5 {[%clk 0:02:56]} 5. a3 {[%clk 0:03:01]}  Bxc3+ {[%clk 0:02:56]} 6. bxc3 {[%clk 0:03:02]}  Qa5 {[%clk 0:02:57]} 7. Bd2 {[%clk 0:03:01]}  Qa4 {[%clk 0:02:57]} 8. Qg4 {[%clk 0:02:59]}  g6 {[%clk 0:02:58]} 9. Nf3 {[%clk 0:02:43]}  Nc6 {[%clk 0:02:58]} 10. Bd3 {[%clk 0:02:09]}  c4 {[%clk 0:02:57]} 11. Be2 {[%clk 0:02:09]}  h6 {[%clk 0:02:53]} 12. O-O {[%clk 0:02:06]}  Bd7 {[%clk 0:02:52]} 13. Qh4 {[%clk 0:02:05]}  Nce7 {[%clk 0:02:45]} 14. Rfb1 {[%clk 0:01:35]}  g5 {[%clk 0:02:42]} 15. Qh3 {[%clk 0:01:24]}  Bc6 {[%clk 0:02:32]} 16. Nxg5 {[%clk 0:01:15]}  Qxc2 {[%clk 0:02:27]} 17. Nf3 {[%clk 0:01:05]}  O-O-O {[%clk 0:02:19]} 18. Qh5 {[%clk 0:00:48]}  Qg6 {[%clk 0:02:17]} 19. Nh4 {[%clk 0:00:47]}  Qxh5 {[%clk 0:02:16]} 20. Bxh5 {[%clk 0:00:48]}  Rh7 {[%clk 0:02:16]} 21. f4 {[%clk 0:00:44]}  Ba4 {[%clk 0:02:10]} 22. Rb2 {[%clk 0:00:40]}  f5 {[%clk 0:02:04]} 23. h3 {[%clk 0:00:39]}  Rg7 {[%clk 0:02:02]} 24. Kh2 {[%clk 0:00:39]}  Nc6 {[%clk 0:02:01]} 25. g4 {[%clk 0:00:38]}  Nge7 {[%clk 0:02:01]} 26. Rg1 {[%clk 0:00:28]}  Rdg8 {[%clk 0:01:58]} 27. Be3 {[%clk 0:00:28]}  Nd8 {[%clk 0:01:47]} 28. Rbg2 {[%clk 0:00:28]}  a5 {[%clk 0:01:33]} 29. g5 {[%clk 0:00:28]}  Rh8 {[%clk 0:01:23]} 30. gxh6 {[%clk 0:00:16]}  Rxg2+ {[%clk 0:01:24]} 31. Rxg2 {[%clk 0:00:16]}  Rxh6 {[%clk 0:01:24]} 32. Rg5 {[%clk 0:00:17]}  b5 {[%clk 0:01:13]} 33. Ng6 {[%clk 0:00:17]}  Nxg6 {[%clk 0:01:12]} 34. Bxg6 {[%clk 0:00:18]}  Kd7 {[%clk 0:01:07]} 35. Kg3 {[%clk 0:00:18]}  Bd1 {[%clk 0:01:05]} 36. h4 {[%clk 0:00:18]}  Ke7 {[%clk 0:01:04]} 37. h5 {[%clk 0:00:18]}  Nc6 {[%clk 0:01:03]} 38. Kh4 {[%clk 0:00:18]}  Rh8 {[%clk 0:00:48]} 39. Rg1 {[%clk 0:00:17]}  Bc2 {[%clk 0:00:38]} 40. Kg5 {[%clk 0:00:17]}  b4 {[%clk 0:00:37]} 41. cxb4 {[%clk 0:00:17]}  axb4 {[%clk 0:00:38]} 42. axb4 {[%clk 0:00:17]}  Nxb4 {[%clk 0:00:38]} 43. Ra1 {[%clk 0:00:18]}  Kd7 {[%clk 0:00:37]} 44. Ra7+ {[%clk 0:00:18]}  Kc6 {[%clk 0:00:37]} 45. h6 {[%clk 0:00:18]}  Kb6 {[%clk 0:00:36]} 46. Re7 {[%clk 0:00:18]}  c3 {[%clk 0:00:36]} 47. Rxe6+ {[%clk 0:00:18]}  Ka5 {[%clk 0:00:35]} 48. Re8 {[%clk 0:00:18]}  Rxh6 {[%clk 0:00:32]} 49. Kxh6 {[%clk 0:00:18]}  Bd3 {[%clk 0:00:32]} 50. e6 {[%clk 0:00:18]} 1-0


[Site "https://www.chess.com"]

[Event "Titled Tuesday Blitz November 9 2021"]
[White "Schmakel, Sam"]
[Black "Artemenko, Oleg"]
[WhiteFideId "2039311"]
[BlackFideId "14201798"]
[WhiteElo "2356"]
[BlackElo "2287"]
[Result "0-1"]
[Round "08"]
[TimeControl "180+1"]
[Date "2021.11.09"]
[WhiteClock "0:00:04"]
[BlackClock "0:00:21"]

1. Nf3 {[%clk 0:03:00]}  d5 {[%clk 0:03:00]} 2. g3 {[%clk 0:02:59]}  Bg4 {[%clk 0:03:00]} 3. Bg2 {[%clk 0:02:59]}  c6 {[%clk 0:02:59]} 4. c4 {[%clk 0:02:55]}  Bxf3 {[%clk 0:02:58]} 5. Bxf3 {[%clk 0:02:55]}  e6 {[%clk 0:02:58]} 6. O-O {[%clk 0:02:53]}  Nf6 {[%clk 0:02:58]} 7. d4 {[%clk 0:02:46]}  Be7 {[%clk 0:02:58]} 8. Nc3 {[%clk 0:02:40]}  O-O {[%clk 0:02:58]} 9. e4 {[%clk 0:02:39]}  dxc4 {[%clk 0:02:54]} 10. Qe2 {[%clk 0:02:19]}  Qxd4 {[%clk 0:02:36]} 11. Rd1 {[%clk 0:02:19]}  Qc5 {[%clk 0:02:36]} 12. Be3 {[%clk 0:02:19]}  Qb4 {[%clk 0:02:35]} 13. Rd4 {[%clk 0:02:00]}  b5 {[%clk 0:02:31]} 14. e5 {[%clk 0:01:46]}  Nd5 {[%clk 0:02:24]} 15. a4 {[%clk 0:01:35]}  Bc5 {[%clk 0:02:16]} 16. axb5 {[%clk 0:01:23]}  Bxd4 {[%clk 0:01:55]} 17. Bxd4 {[%clk 0:01:23]}  Nxc3 {[%clk 0:01:36]} 18. Bxc3 {[%clk 0:01:11]}  Qxb5 {[%clk 0:01:35]} 19. Ra5 {[%clk 0:01:11]}  Qb3 {[%clk 0:01:28]} 20. Ra3 {[%clk 0:00:33]}  Qb6 {[%clk 0:00:59]} 21. Qxc4 {[%clk 0:00:31]}  Nd7 {[%clk 0:00:58]} 22. Ra6 {[%clk 0:00:29]}  Qd8 {[%clk 0:00:53]} 23. b4 {[%clk 0:00:06]}  Nb6 {[%clk 0:00:52]} 24. Qg4 {[%clk 0:00:06]}  Rc8 {[%clk 0:00:48]} 25. Rxa7 {[%clk 0:00:05]}  Qd3 {[%clk 0:00:48]} 26. Bd4 {[%clk 0:00:03]}  Nd5 {[%clk 0:00:47]} 27. Be4 {[%clk 0:00:04]}  Qd2 {[%clk 0:00:41]} 28. Qh4 {[%clk 0:00:04]}  g6 {[%clk 0:00:40]} 29. Bxd5 {[%clk 0:00:04]}  cxd5 {[%clk 0:00:34]} 30. Be3 {[%clk 0:00:04]}  Qd1+ {[%clk 0:00:33]} 31. Kg2 {[%clk 0:00:04]}  Qc2 {[%clk 0:00:23]} 32. g4 {[%clk 0:00:04]}  Qe4+ {[%clk 0:00:23]} 33. Kg3 {[%clk 0:00:04]}  d4 {[%clk 0:00:21]} 34. Bh6 {[%clk 0:00:04]}  Rc3+ {[%clk 0:00:21]} 35. Be3 {[%clk 0:00:03]}  dxe3 {[%clk 0:00:21]} 36. f3 {[%clk 0:00:04]}  e2 {[%clk 0:00:21]} 0-1


[Site "https://www.chess.com"]